bitfinex-derivatives/quotes_SOLF0:USTF0_20260312
["timestamp","ask_amount","ask_price","bid_price","bid_amount"]
[1773313439963,2.47723992,86.82,86.769,3.98865143]
[1773313440163,3.96552614,86.819,86.769,3.98865143]
[1773313440966,3.96552614,86.819,86.771,10.37]
[1773313441265,3.96552614,86.809,86.769,3.98865143]
[1773313442158,3.96552614,86.809,86.769,14.35865143]
[1773313442664,3.96552614,86.809,86.77,3.98865143]
[1773313445275,3.96552614,86.809,86.76,10.371]
[1773313445472,3.96552614,86.809,86.76,3.98865143]
[1773313445667,3.96552614,86.809,86.769,3.98865143]
[1773313445871,3.96552614,86.819,86.769,3.98865143]
[1773313446574,3.96552614,86.818,86.77,3.98865143]
[1773313447262,3.96552614,86.818,86.782,10.369]
[1773313447568,3.96552614,86.818,86.761,3.98865143]
[1773313448874,2.47723992,86.82,86.76,2.47723992]
[1773313448875,3.96552614,86.816,86.767,3.98865143]
[1773313449973,3.96552614,86.814,86.768,14.35865143]
[1773313450278,3.96552614,86.814,86.769,3.98865143]
[1773313451675,10.366,86.805,86.769,3.98865143]
[1773313451870,3.96552614,86.814,86.769,3.98865143]
[1773313452674,8.47339204,86.85,86.769,3.98865143]
[1773313452675,3.96552614,86.807,86.769,3.98865143]
[1773313454675,3.96552614,86.799,86.745,21.25644366]
[1773313454879,3.96552614,86.799,86.746,3.98865143]
[1773313455280,14.33252614,86.799,86.748,10.373]
[1773313455479,3.96552614,86.798,86.748,10.373]
[1773313456079,3.96552614,86.794,86.746,3.98865143]
[1773313457272,3.96552614,86.794,86.754,10.372]
[1773313457478,3.96552614,86.794,86.746,3.98865143]
[1773313458086,3.96552614,86.789,86.746,3.98865143]
[1773313458881,3.96552614,86.789,86.747,10.373]
[1773313461083,3.75440768,86.806,86.75,3.8313687]
[1773313461684,2.47723992,86.8,86.75,3.8313687]
[1773313461884,3.75440768,86.799,86.76,10.371]
[1773313462281,3.75440768,86.799,86.761,3.8313687]
[1773313466992,3.75440768,86.799,86.762,10.371]
[1773313467887,3.75440768,86.799,86.761,3.8313687]
[1773313471296,10.367,86.795,86.761,3.8313687]
[1773313471895,3.75440768,86.799,86.761,3.8313687]
[1773313474003,3.75440768,86.797,86.761,3.8313687]
[1773313474295,3.75440768,86.797,86.754,10.372]
[1773313474502,3.75440768,86.789,86.75,3.8313687]
[1773313474899,3.75440768,86.789,86.752,10.372]
[1773313475797,14.12240768,86.788,86.75,3.8313687]
[1773313477004,3.75440768,86.787,86.75,3.8313687]
[1773313477403,10.368,86.786,86.75,3.8313687]
[1773313477701,14.12240768,86.786,86.75,3.8313687]
[1773313478104,10.369,86.784,86.75,3.8313687]
[1773313479504,3.75440768,86.785,86.751,10.372]
[1773313481801,10.369,86.78,86.75,3.8313687]
[1773313482008,3.75440768,86.785,86.75,3.8313687]
[1773313482198,3.75440768,86.785,86.734,3.8313687]
[1773313483904,4.01177796,86.782,86.744,10.373]
[1773313484510,4.01177796,86.782,86.734,3.8313687]
[1773313484511,4.01177796,86.782,86.737,10.374]
[1773313485409,4.01177796,86.779,86.737,10.374]
[1773313486603,4.01177796,86.779,86.74,3.97233034]
[1773313487506,14.38077796,86.778,86.74,3.97233034]
[1773313487912,4.01177796,86.777,86.74,3.97233034]
[1773313488912,4.01177796,86.775,86.74,3.97233034]
[1773313489911,4.01177796,86.775,86.729,10.375]
[1773313489912,4.01177796,86.772,86.729,14.34733034]
[1773313490117,4.00738355,86.769,86.716,4.00911873]
[1773313490608,2.478708,86.77,86.716,4.00911873]
[1773313490609,4.00738355,86.756,86.716,4.00911873]
[1773313491608,4.00738355,86.756,86.693,21.25644366]
[1773313491609,4.00738355,86.745,86.698,4.00911873]
[1773313491815,4.00738355,86.745,86.688,4.00911873]
[1773313492206,4.00738355,86.731,86.691,4.00911873]
[1773313492411,4.00738355,86.729,86.691,4.00911873]
[1773313492810,4.00738355,86.729,86.679,4.00911873]
[1773313493711,4.00738355,86.759,86.701,4.00911873]
[1773313493912,4.00738355,86.749,86.701,4.00911873]
[1773313494611,4.00738355,86.748,86.701,4.00911873]
[1773313495011,4.00738355,86.745,86.701,4.00911873]
[1773313495917,4.00738355,86.764,86.721,4.00911873]
[1773313496211,4.00738355,86.764,86.73,2.478708]
[1773313496409,4.00738355,86.764,86.721,4.00911873]
[1773313497119,4.00738355,86.799,86.74,6.48782673]
[1773313497417,4.00738355,86.799,86.751,4.00911873]
[1773313497808,4.00738355,86.799,86.755,10.372]
[1773313498217,4.00738355,86.799,86.756,4.00911873]
[1773313499516,4.00738355,86.799,86.76,6.48782673]
[1773313499914,4.00738355,86.799,86.761,4.00911873]
[1773313500618,10.366,86.809,86.761,4.00911873]
[1773313500819,14.37338355,86.809,86.761,4.00911873]
[1773313501016,4.00738355,86.808,86.761,4.00911873]
[1773313502022,4.00738355,86.806,86.761,4.00911873]
[1773313502217,4.00738355,86.806,86.75,2.478708]
[1773313502817,4.00738355,86.806,86.75,6.48782673]
[1773313503016,4.00738355,86.804,86.75,6.48782673]
[1773313503217,4.00738355,86.804,86.751,4.00911873]
[1773313507121,4.00738355,86.791,86.714,10.10250999]
[1773313507319,2.478708,86.75,86.714,10.10250999]
[1773313507618,2.478708,86.74,86.661,28.36489103]
[1773313507822,2.478708,86.74,86.687,10.10250999]
[1773313508222,2.478708,86.74,86.689,10.01295959]
[1773313508526,8.58398923,86.78,86.689,10.01295959]
[1773313508527,2.478708,86.75,86.689,10.01295959]
[1773313508728,10.375,86.731,86.689,10.01295959]
[1773313517633,10.375,86.729,86.689,10.01295959]
[1773313523634,10.376,86.723,86.689,10.01295959]
[1773313524033,10.376,86.723,86.676,10.381]
[1773313524034,2.478708,86.73,86.677,9.96631805]
[1773313524233,10.377,86.717,86.677,9.96631805]
[1773313526536,10.376,86.724,86.684,10.38]
[1773313526735,10.376,86.724,86.67,2.478708]
[1773313526736,10.376,86.724,86.685,9.96103535]
[1773313529739,10.74968768,86.794,86.648,43.56]
[1773313529740,10.374,86.735,86.692,9.96002518]
[1773313530636,10.375,86.729,86.692,9.96002518]
[1773313530835,2.478708,86.74,86.692,9.96002518]
[1773313531235,10.376,86.723,86.692,9.96002518]
[1773313532139,10.377,86.717,86.677,10.381]
[1773313532340,10.377,86.717,86.678,10.00424355]
[1773313534641,10.377,86.71,86.678,10.00424355]
[1773313536741,10.377,86.71,86.666,9.94083921]
[1773313537244,10.377,86.71,86.67,12.41954721]
[1773313537442,10.377,86.71,86.672,9.94083921]
[1773313537642,10.376,86.718,86.672,9.94083921]
[1773313538841,10.376,86.718,86.674,9.94046249]
[1773313539442,10.376,86.718,86.681,9.94046249]
[1773313541138,10.377,86.713,86.681,9.94046249]
[1773313543145,2.48226665,86.73,86.664,9.90060912]
[1773313543352,2.48226665,86.73,86.596,28.36489103]
[1773313543353,2.48226665,86.71,86.651,9.90060912]
[1773313544850,10.379,86.696,86.652,10.384]
[1773313545245,10.379,86.696,86.653,9.8968108]
[1773313546842,10.379,86.696,86.657,10.384]
[1773313547041,10.379,86.696,86.658,9.88655109]
[1773313549156,2.48226665,86.74,86.681,9.87901802]
[1773313549848,10.377,86.717,86.681,9.87901802]
[1773313555559,10.378,86.709,86.681,9.87901802]
[1773313555951,2.48226665,86.74,86.681,9.87901802]
[1773313556350,10.376,86.724,86.681,9.87901802]
[1773313556750,2.48226665,86.74,86.681,9.87901802]
[1773313557847,10.377,86.718,86.681,9.87901802]
[1773313560858,10.377,86.718,86.682,9.8871021]
[1773313561948,10.377,86.718,86.661,21.25156838]
[1773313561949,2.48226665,86.75,86.691,9.8871021]
[1773313562554,10.375,86.733,86.691,9.8871021]
[1773313563762,10.375,86.733,86.653,43.56]
[1773313563763,2.48226665,86.73,86.679,9.92242387]
[1773313564752,2.48226665,86.75,86.681,9.93239591]
[1773313564960,2.48226665,86.75,86.691,9.93239591]
[1773313565862,10.375,86.729,86.691,9.93239591]
[1773313567860,10.374,86.737,86.696,9.92669742]
[1773313568864,10.374,86.737,86.697,10.379]
[1773313569058,10.374,86.737,86.698,9.91558377]
[1773313570866,10.374,86.737,86.699,9.92263819]
[1773313574572,10.375,86.731,86.699,9.92263819]
[1773313576067,8.65268455,86.764,86.711,9.88274004]
[1773313576375,2.48226665,86.77,86.711,9.88274004]
[1773313576566,20.74,86.775,86.711,9.88274004]
[1773313577570,10.372,86.753,86.714,9.88582153]
[1773313580374,10.371,86.76,86.721,9.84365287]
[1773313580570,10.371,86.76,86.69,21.25156838]
[1773313580571,10.371,86.76,86.731,9.84365287]
[1773313585374,10.372,86.754,86.714,10.377]
[1773313585578,2.48226665,86.77,86.714,9.85237432]
[1773313586076,10.372,86.754,86.714,9.85237432]
[1773313586672,10.371,86.761,86.721,9.87366517]
[1773313586867,2.48226665,86.78,86.721,9.87366517]
[1773313587573,10.371,86.762,86.726,9.87366517]
[1773313589078,2.48226665,86.78,86.726,9.87366517]
[1773313589079,10.372,86.755,86.726,9.87366517]
[1773313589280,2.48226665,86.77,86.726,9.87366517]
[1773313589979,10.372,86.757,86.726,9.87366517]
[1773313591683,2.48226665,86.77,86.726,9.87366517]
[1773313592582,10.373,86.749,86.726,9.87366517]
[1773313592980,2.48226665,86.77,86.726,9.87366517]
[1773313593880,10.372,86.755,86.726,9.87366517]
[1773313596582,10.372,86.755,86.715,9.92300588]
[1773313597785,10.372,86.755,86.719,9.92300588]
[1773313598482,10.371,86.762,86.721,9.92256725]
[1773313598683,2.48226665,86.78,86.721,9.92256725]
[1773313599580,2.47988222,86.78,86.721,9.92256725]
[1773313599985,10.37,86.769,86.724,9.92256725]
[1773313600489,10.37,86.769,86.729,9.90258282]
[1773313601185,10.369,86.776,86.732,9.90258282]
[1773313601580,2.47988222,86.8,86.741,9.90258282]
[1773313602190,10.369,86.783,86.745,9.90258282]
[1773313605385,10.369,86.777,86.745,9.90258282]
[1773313605998,2.47988222,86.78,86.731,9.90398713]
[1773313606194,2.47988222,86.77,86.731,9.90398713]
[1773313607093,2.47988222,86.77,86.698,9.90357094]
[1773313607295,2.47988222,86.75,86.698,9.90357094]
[1773313607798,10.373,86.746,86.698,9.90357094]
[1773313608197,10.374,86.74,86.698,20.28257094]
[1773313608395,10.374,86.74,86.699,9.90528504]
[1773313615903,10.375,86.733,86.699,9.90528504]
[1773313620701,2.47988222,86.76,86.7,2.47988222]
[1773313620909,2.47988222,86.77,86.711,9.96654955]
[1773313621210,10.372,86.757,86.721,9.96654955]
[1773313621410,2.47988222,86.78,86.721,9.96654955]
[1773313622303,10.37,86.772,86.731,9.97180587]
[1773313623911,10.37,86.772,86.732,9.97180587]
[1773313626914,10.37,86.772,86.691,43.58]
[1773313626915,2.47988222,86.81,86.751,9.98897076]
[1773313627515,10.366,86.802,86.761,9.98897076]
[1773313628809,10.365,86.81,86.762,9.98797583]
[1773313629210,57.54990364,86.82,86.762,9.98797583]
[1773313630016,10.366,86.803,86.762,9.98797583]
[1773313633916,10.366,86.803,86.762,20.35897583]
[1773313634117,10.366,86.803,86.763,9.98436678]
[1773313643827,2.47988222,86.8,86.747,9.9729664]
[1773313644220,10.367,86.794,86.752,10.372]
[1773313644422,10.367,86.794,86.751,9.9726272]
[1773313646024,10.367,86.794,86.758,9.9726272]
[1773313648531,10.368,86.789,86.758,9.9726272]
[1773313649431,10.367,86.795,86.758,9.9726272]
[1773313650138,2.47988222,86.8,86.76,9.97173716]
[1773313650330,2.47988222,86.81,86.76,9.97173716]
[1773313651932,10.367,86.797,86.76,9.97173716]
[1773313653832,10.368,86.791,86.76,9.97173716]
[1773313655739,10.367,86.797,86.76,9.97173716]
[1773313657732,55.07002142,86.82,86.76,9.97173716]
[1773313658040,55.07002142,86.82,86.661,178.0]
[1773313658041,43.54,86.823,86.771,9.97228449]
[1773313658232,43.54,86.825,86.771,9.97228449]
[1773313658832,43.54,86.825,86.776,9.97295192]
[1773313659030,43.54,86.827,86.776,9.97295192]
[1773313660940,10.364,86.825,86.784,10.03165856]
[1773313663537,10.366,86.806,86.767,10.03917128]
[1773313664143,10.365,86.814,86.775,10.03917128]
[1773313665945,10.365,86.814,86.777,10.03984047]
[1773313670048,2.476888,86.79,86.752,10.02650642]
[1773313670236,11.58075277,86.835,86.741,10.02650642]
[1773313670237,2.476888,86.77,86.741,10.02650642]
[1773313670636,2.476888,86.76,86.73,10.02632008]
[1773313671441,2.476888,86.76,86.732,10.375]
[1773313672146,2.476888,86.77,86.732,20.40132008]
[1773313672348,2.476888,86.77,86.735,10.374]
[1773313673048,2.476888,86.77,86.733,10.03675563]
[1773313674152,2.476888,86.78,86.734,10.03675563]
[1773313675547,2.476888,86.77,86.734,10.03675563]
[1773313675749,2.476888,86.76,86.722,10.05687531]
[1773313675949,2.476888,86.77,86.722,10.05687531]
[1773313676949,10.37,86.768,86.723,10.376]
[1773313677152,10.37,86.768,86.724,10.09288615]
[1773313679747,10.372,86.757,86.724,10.09288615]
[1773313679947,2.476888,86.77,86.724,10.09288615]
[1773313680356,10.372,86.757,86.724,10.09288615]
[1773313680653,10.372,86.757,86.685,43.54]
[1773313680654,2.476888,86.75,86.696,10.08061993]
[1773313680954,10.373,86.749,86.696,10.08061993]
[1773313681849,10.373,86.749,86.7,10.08061993]
[1773313682359,10.373,86.749,86.7,12.55750793]
[1773313682555,10.373,86.749,86.7,10.08061993]
[1773313683850,10.373,86.749,86.708,20.44302151]
[1773313684455,10.373,86.749,86.709,10.10947632]
[1773313684854,2.476888,86.77,86.711,10.10947632]
[1773313685052,43.56,86.779,86.711,10.10947632]
[1773313685566,10.37,86.772,86.724,10.10947632]
[1773313686063,43.56,86.779,86.724,10.10947632]
[1773313686258,2.476888,86.77,86.724,10.10947632]
[1773313686455,2.476888,86.76,86.724,10.10947632]
[1773313687954,10.373,86.749,86.724,10.10947632]
[1773313688764,10.373,86.749,86.713,10.11531615]
[1773313689459,10.374,86.742,86.713,10.11531615]
[1773313689666,2.476888,86.75,86.713,10.11531615]
[1773313690162,2.476888,86.75,86.713,20.49231615]
[1773313690962,10.372,86.758,86.713,20.49231615]
[1773313691665,10.372,86.752,86.713,20.49231615]
[1773313692166,2.476888,86.76,86.713,10.11531615]
[1773313692364,10.372,86.753,86.713,10.11531615]
[1773313693563,2.476888,86.75,86.713,10.11531615]
[1773313693964,10.372,86.753,86.713,10.11531615]
[1773313694468,2.476888,86.76,86.713,10.11531615]
[1773313695870,10.372,86.759,86.721,10.10343545]
[1773313699973,10.373,86.746,86.721,10.10343545]
[1773313700875,10.372,86.752,86.721,10.10343545]
[1773313701276,43.56,86.783,86.721,10.10343545]
[1773313701571,43.56,86.783,86.685,43.54]
[1773313701572,43.56,86.83,86.771,10.09985087]
[1773313701790,2.476888,86.85,86.791,10.09985087]
[1773313701966,2.476888,86.84,86.791,10.09985087]
[1773313702976,10.362,86.837,86.791,10.09985087]
[1773313704977,2.476888,86.84,86.791,10.09985087]
[1773313705877,10.362,86.839,86.791,10.09985087]
[1773313706374,2.476888,86.85,86.791,10.09985087]
[1773313706571,12.837888,86.85,86.791,10.09985087]
[1773313706978,10.361,86.85,86.791,10.09985087]
[1773313707277,10.361,86.85,86.748,21.25156838]
[1773313707278,10.359,86.861,86.801,10.19454511]
[1773313707470,2.476888,86.86,86.801,10.19454511]
[1773313707669,2.476888,86.85,86.801,10.19454511]
[1773313708569,2.476888,86.86,86.801,10.19454511]
[1773313709076,10.36,86.859,86.801,10.19454511]
[1773313709476,2.476888,86.85,86.801,10.19454511]
[1773313710280,2.476888,86.84,86.801,10.19454511]
[1773313710777,10.362,86.839,86.781,10.21463768]
[1773313710970,2.476888,86.83,86.781,10.21463768]
[1773313711580,2.476888,86.82,86.781,10.21463768]
[1773313713984,12.840888,86.82,86.781,10.21463768]
[1773313716684,10.364,86.82,86.781,10.21463768]
[1773313717482,12.839888,86.83,86.781,10.21463768]
[1773313718891,10.364,86.822,86.781,10.21463768]
[1773313719188,2.476888,86.81,86.766,10.22275063]
[1773313719784,43.54,86.859,86.771,10.22275063]
[1773313720089,2.476888,86.84,86.771,10.22275063]
[1773313720391,2.476888,86.84,86.784,10.20470674]
[1773313720586,10.361,86.844,86.784,10.20470674]
[1773313721491,10.362,86.838,86.788,10.20470674]
[1773313723692,10.363,86.828,86.788,10.20470674]
[1773313724700,10.362,86.839,86.788,10.20470674]
[1773313727698,2.47653942,86.83,86.788,10.20470674]
[1773313730594,2.47653942,86.82,86.788,10.20470674]
[1773313730796,12.84153942,86.81,86.777,10.15335823]
[1773313733199,2.47653942,86.81,86.777,10.15335823]
[1773313733401,2.47653942,86.82,86.777,10.15335823]
[1773313735006,12.84053942,86.82,86.777,10.15335823]
[1773313736101,12.84053942,86.82,86.782,10.16547572]
[1773313738309,10.363,86.828,86.782,10.16547572]
[1773313738914,10.363,86.828,86.785,10.16609067]
[1773313740001,10.363,86.828,86.789,10.16609067]
[1773313740204,10.362,86.835,86.789,10.16609067]
[1773313742010,10.362,86.835,86.791,10.16797804]
[1773313743913,10.362,86.835,86.795,10.1625954]
[1773313745010,2.47653942,86.86,86.804,10.16315744]
[1773313745214,2.47653942,86.87,86.811,10.16315744]
[1773313746017,10.359,86.863,86.82,10.16315744]
[1773313749718,12.83453942,86.87,86.824,10.19093683]
[1773313750217,10.359,86.864,86.824,10.19093683]
[1773313751620,10.36,86.857,86.824,10.19093683]
[1773313752119,10.359,86.864,86.824,10.19093683]
[1773313753021,10.359,86.864,86.826,10.19236088]
[1773313755417,10.36,86.858,86.817,10.364]
[1773313755618,10.36,86.858,86.817,10.16787483]
[1773313755828,10.361,86.851,86.817,10.16787483]
[1773313759324,10.361,86.845,86.817,10.16787483]
[1773313760023,2.47653942,86.85,86.817,10.16787483]
[1773313761925,10.361,86.849,86.817,10.16787483]
[1773313762125,2.47653942,86.86,86.817,10.16787483]
[1773313762324,2.47653942,86.85,86.817,10.16787483]
[1773313762935,10.362,86.843,86.817,10.16787483]
[1773313764724,10.362,86.843,86.79,2.47653942]
[1773313764932,10.362,86.836,86.791,10.20484732]
[1773313765232,2.47653942,86.84,86.791,10.20484732]
[1773313766932,2.47653942,86.84,86.8,10.2083722]
[1773313767136,10.362,86.843,86.8,10.2083722]
[1773313768133,10.362,86.843,86.803,10.2083722]
[1773313770035,2.47653942,86.84,86.803,10.2083722]
[1773313773030,2.47653942,86.83,86.793,10.24549053]
[1773313773237,2.47653942,86.82,86.773,10.24549053]
[1773313773633,2.47653942,86.83,86.773,10.24549053]
[1773313774034,2.47653942,86.82,86.784,10.24549053]
[1773313774538,2.47653942,86.83,86.784,10.24549053]
[1773313774935,10.364,86.821,86.784,10.24549053]
[1773313776429,43.52,86.837,86.786,10.25621287]
[1773313776628,2.47653942,86.84,86.786,10.25621287]
[1773313777838,10.363,86.829,86.789,10.368]
[1773313778034,10.363,86.829,86.79,10.25621287]
[1773313781535,2.47653942,86.84,86.79,10.25621287]
[1773313781536,10.362,86.842,86.802,10.27548463]
[1773313782937,10.361,86.849,86.807,10.27638472]
[1773313783141,2.47653942,86.85,86.807,10.27638472]
[1773313783632,2.47559358,86.85,86.807,10.27638472]
[1773313783835,10.361,86.843,86.807,10.27638472]
[1773313785242,10.362,86.837,86.807,10.27638472]
[1773313786737,10.361,86.844,86.807,10.27638472]
[1773313789434,10.361,86.844,86.768,43.52]
[1773313789435,2.47559358,86.84,86.794,10.26865893]
[1773313790342,10.363,86.829,86.794,10.26865893]
[1773313791943,2.47559358,86.83,86.779,10.24308052]
[1773313792446,10.364,86.825,86.781,10.22022931]
[1773313793945,10.364,86.825,86.785,10.22022931]
[1773313796446,10.363,86.833,86.791,10.21070693]
[1773313797859,10.364,86.826,86.791,10.21070693]
[1773313798756,10.364,86.826,86.744,71.89443243]
[1773313798757,2.47559358,86.83,86.779,10.21297081]
[1773313798955,2.47559358,86.82,86.779,10.21297081]
[1773313799859,10.365,86.816,86.779,10.21297081]
[1773313802162,2.47559358,86.81,86.779,10.21297081]
[1773313802463,20.723,86.845,86.779,10.21297081]
[1773313802464,2.47559358,86.82,86.779,10.21297081]
[1773313802658,10.366,86.809,86.779,10.21297081]
[1773313802855,2.47559358,86.82,86.754,10.21266553]
[1773313803056,2.47559358,86.81,86.757,10.21266553]
[1773313803458,10.366,86.804,86.757,10.21266553]
[1773313805063,10.366,86.804,86.766,10.32719976]
[1773313805667,10.367,86.799,86.766,10.32719976]
[1773313812276,2.47559358,86.82,86.766,10.32719976]
[1773313812776,46.01559358,86.83,86.766,10.32719976]
[1773313813379,10.364,86.82,86.78,10.31840525]
[1773313813571,46.01559358,86.83,86.78,10.31840525]
[1773313814976,10.365,86.814,86.78,10.31840525]
[1773313815172,2.47559358,86.82,86.78,10.31840525]
[1773313815972,2.47559358,86.82,86.761,10.31869693]
[1773313816978,10.366,86.808,86.766,10.31226095]
[1773313817878,10.366,86.808,86.769,10.31226095]
[1773313818077,10.365,86.811,86.769,10.31226095]
[1773313818879,10.365,86.811,86.773,10.37]
[1773313820377,10.366,86.805,86.769,10.31226095]
[1773313823678,43.54,86.83,86.773,10.29764739]
[1773313823881,2.47559358,86.82,86.773,10.29764739]
[1773313824982,10.365,86.812,86.773,10.29764739]
[1773313825484,10.366,86.805,86.773,10.29764739]
[1773313827780,10.365,86.811,86.773,10.29764739]
[1773313831682,10.366,86.806,86.773,10.29764739]
[1773313832474,10.367,86.799,86.773,10.29764739]
[1773313832675,2.47559358,86.81,86.773,10.29764739]
[1773313832876,43.54,86.83,86.773,10.29764739]
[1773313832877,2.47559358,86.82,86.773,10.29764739]
[1773313833979,10.365,86.815,86.775,10.34681877]
[1773313835182,10.365,86.815,86.779,10.32755825]
[1773313835384,10.364,86.822,86.779,10.32755825]
[1773313836789,2.47559358,86.83,86.784,10.33039236]
[1773313836983,2.47559358,86.84,86.784,10.33039236]
[1773313837682,2.47559358,86.83,86.784,10.33039236]
[1773313837889,2.47559358,86.82,86.784,10.33039236]
[1773313838290,10.365,86.816,86.784,10.33039236]
[1773313839086,2.47559358,86.83,86.784,10.33039236]
[1773313839486,10.363,86.828,86.784,10.33039236]
[1773313844896,10.363,86.828,86.785,10.34412165]
[1773313847099,2.47694367,86.83,86.792,10.3541779]
[1773313847396,43.54,86.853,86.771,10.3541779]
[1773313847397,2.47694367,86.82,86.771,10.3541779]
[1773313848593,2.47694367,86.83,86.776,10.33585842]
[1773313849499,10.364,86.82,86.777,10.369]
[1773313849700,10.364,86.82,86.778,10.33585842]
[1773313853802,10.364,86.82,86.781,10.33293765]
[1773313860507,10.365,86.811,86.781,10.33293765]
[1773313860706,2.47694367,86.83,86.781,10.33293765]
[1773313861406,8.63348955,86.852,86.785,10.34479605]
[1773313861609,8.63348955,86.864,86.811,10.34479605]
[1773313861805,8.63348955,86.87,86.811,10.34479605]
[1773313862110,10.359,86.862,86.818,10.364]
[1773313862303,10.359,86.862,86.819,10.34515393]
[1773313863606,10.358,86.87,86.822,10.34515393]
[1773313863809,2.47694367,86.89,86.831,10.34515393]
[1773313864312,8.62727697,86.898,86.851,10.34994673]
[1773313864503,2.47694367,86.91,86.851,10.34994673]
[1773313864815,10.355,86.898,86.851,10.34994673]
[1773313865005,2.47694367,86.9,86.851,10.34994673]
[1773313865411,10.357,86.881,86.851,10.34994673]
[1773313868712,10.358,86.871,86.817,10.25601433]
[1773313868918,10.358,86.871,86.821,10.25601433]
[1773313869915,2.47694367,86.86,86.821,10.25601433]
[1773313870218,2.47694367,86.85,86.821,10.25601433]
[1773313871015,10.361,86.848,86.821,10.25601433]
[1773313871412,10.361,86.848,86.797,10.26706673]
[1773313872012,10.362,86.839,86.797,10.26706673]
[1773313872310,2.47694367,86.84,86.797,10.26706673]
[1773313872822,2.47694367,86.85,86.797,10.26706673]
[1773313873509,10.362,86.84,86.797,10.26706673]
[1773313874821,10.363,86.83,86.797,10.26706673]
[1773313876020,12.83994367,86.83,86.797,10.26706673]
[1773313877824,10.364,86.822,86.777,10.29179665]
[1773313880126,2.47694367,86.82,86.777,10.29179665]
[1773313880424,2.47694367,86.81,86.777,10.29179665]
[1773313880724,10.365,86.812,86.777,10.29179665]
[1773313883327,43.52,86.843,86.739,43.52]
[1773313883328,10.366,86.805,86.764,10.28697048]
[1773313886939,10.367,86.797,86.764,10.28697048]
[1773313889933,2.47694367,86.83,86.771,10.27053085]
[1773313890940,10.365,86.814,86.772,10.27062413]
[1773313901443,10.366,86.808,86.772,10.27062413]
[1773313902345,2.47694367,86.81,86.751,10.25182149]
[1773313903042,2.47694367,86.82,86.751,10.25182149]
[1773313903843,10.366,86.802,86.764,10.25197508]
[1773313907248,10.367,86.795,86.764,10.25197508]
[1773313907547,2.47783182,86.81,86.764,10.25197508]
[1773313907938,10.367,86.794,86.764,10.25197508]
[1773313912246,10.367,86.801,86.764,10.25197508]
[1773313912947,2.47783182,86.83,86.771,10.23209386]
[1773313913949,10.365,86.817,86.772,10.23209386]
[1773313915448,10.365,86.817,86.775,10.27954981]
[1773313916853,10.365,86.81,86.775,10.27954981]
[1773313919051,10.366,86.804,86.775,10.27954981]
[1773313921155,2.47783182,86.83,86.775,10.27954981]
[1773313922853,10.366,86.808,86.775,10.27954981]
[1773313923450,2.47783182,86.82,86.775,10.27954981]
[1773313923845,20.725,86.837,86.775,10.27954981]
[1773313923846,8.60026879,86.839,86.775,10.27954981]
[1773313924050,2.47783182,86.84,86.775,10.27954981]
[1773313924944,10.364,86.826,86.783,10.28174964]
[1773313925949,10.364,86.826,86.789,10.28174964]
[1773313926956,10.364,86.826,86.791,10.28004254]
[1773313938462,10.363,86.833,86.793,10.29922928]
[1773313942467,10.364,86.823,86.793,10.29922928]
[1773313943966,10.365,86.81,86.77,31.62156838]
[1773313944163,2.47783182,86.82,86.764,10.29399979]
[1773313945967,10.366,86.804,86.767,10.23048707]
[1773313946869,10.366,86.804,86.769,10.19527027]
[1773313950273,2.47783182,86.83,86.772,10.19522176]
[1773313950569,2.47783182,86.84,86.781,10.19397539]
[1773313951069,10.363,86.828,86.782,10.19397539]
[1773313953264,2.47783182,86.81,86.764,10.19502649]
[1773313953776,2.47783182,86.81,86.767,10.19502649]
[1773313954376,10.365,86.811,86.767,10.19502649]
[1773313954678,2.47783182,86.83,86.775,10.19587733]
[1773313955381,10.364,86.819,86.781,10.19587733]
[1773313964282,2.47783182,86.82,86.771,20.5475817]
[1773313965282,2.47783182,86.82,86.772,10.17413075]
[1773313965684,10.366,86.806,86.772,10.17413075]
[1773313966585,10.367,86.795,86.762,10.17144646]
[1773313966781,2.47783182,86.8,86.762,10.17144646]
[1773313967179,2.47783182,86.8,86.763,10.371]
[1773313967685,2.47851769,86.8,86.763,10.371]
[1773313968681,10.368,86.792,86.762,10.17144646]